bitfinex/quotes_ETHUSD_20250904
["timestamp","ask_amount","ask_price","bid_price","bid_amount"]
[1756970405266,20.66162119,4381.3,4381.2,0.004]
[1756970410985,20.66082119,4381.3,4381.2,0.004]
[1756970413991,20.20622119,4381.3,4381.2,0.004]
[1756970414355,20.66082119,4381.3,4381.2,0.004]
[1756970415184,16.82682119,4381.3,4381.2,0.004]
[1756970415408,20.65882119,4381.3,4381.2,0.004]
[1756970419237,20.65882119,4381.3,4381.2,1e-08]
[1756970419509,20.75034882,4381.3,4381.2,1e-08]
[1756970419664,12.00180299,4380.9,4380.3,0.004]
[1756970420007,21.08162959,4380.9,4380.3,0.004]
[1756970420173,22.30142959,4380.9,4380.3,0.004]
[1756970420503,22.41582959,4380.9,4380.3,0.004]
[1756970421409,22.52836417,4380.9,4380.3,0.004]
[1756970423098,21.96122959,4380.9,4380.3,0.004]
[1756970423279,22.41582959,4380.9,4380.3,0.004]
[1756970424290,22.532258,4380.9,4380.3,0.004]
[1756970425604,15.00206354,4380.4,4380.3,0.004]
[1756970425787,19.44129014,4380.4,4380.3,0.004]
[1756970426120,20.66109014,4380.4,4380.3,0.004]
[1756970426422,3.07515714,4379.9,4379.8,0.025]
[1756970426601,9.2749687,4379.9,4379.8,0.025]
[1756970426801,13.48918374,4379.9,4379.8,0.025]
[1756970427820,13.03458374,4379.9,4379.8,0.025]
[1756970427997,12.72818374,4379.9,4379.8,0.025]
[1756970428198,13.03458374,4379.9,4379.8,0.025]
[1756970428806,12.26938374,4379.9,4379.8,0.025]
[1756970429012,21.19655075,4379.9,4379.8,0.3139]
[1756970429218,5.77498374,4379.9,4379.8,0.3139]
[1756970429409,18.64955075,4379.9,4379.8,0.3139]
[1756970429605,19.44155075,4379.9,4379.8,0.3139]
[1756970430703,19.44155075,4379.9,4379.8,0.025]
[1756970432028,20.21975075,4379.9,4379.8,0.025]
[1756970432201,20.65885075,4379.9,4379.8,0.029]
[1756970433301,20.21975075,4379.9,4379.8,0.029]
[1756970433497,20.65885075,4379.9,4379.8,0.029]
[1756970433926,19.44155075,4379.9,4379.8,0.029]
[1756970434226,19.44155075,4379.9,4379.8,0.3175]
[1756970434744,19.44155075,4379.9,4379.8,0.029]
[1756970435047,19.44155075,4379.9,4379.8,0.3175]
[1756970435843,19.44155075,4379.9,4379.8,0.029]
[1756970436144,19.44075075,4379.9,4379.8,0.029]
[1756970436346,19.93385075,4379.9,4379.8,0.029]
[1756970436540,20.21895075,4379.9,4379.8,0.029]
[1756970436746,19.93385075,4379.9,4379.8,0.029]
[1756970438059,19.44075075,4379.9,4379.8,0.3175]
[1756970438349,19.44075075,4379.9,4379.8,0.7477]
[1756970438842,19.44075075,4379.9,4379.8,0.3175]
[1756970441831,19.44075075,4379.9,4379.8,0.029]
[1756970442158,19.44075075,4379.9,4379.8,0.3175]
[1756970442459,19.44075075,4379.9,4379.8,0.029]
[1756970446456,19.72585075,4379.9,4379.8,0.029]
[1756970446760,20.65805075,4379.9,4379.8,0.029]
[1756970449578,22.64297565,4379.9,4379.8,0.029]
[1756970451766,21.91877565,4379.9,4379.8,0.029]
[1756970451969,21.42667565,4379.9,4379.8,0.029]
[1756970452153,6.68158374,4379.9,4379.8,0.3175]
[1756970452342,10.51458374,4379.9,4379.8,0.3175]
[1756970453282,10.51458374,4379.9,4379.8,0.029]
[1756970453576,11.73188374,4379.9,4379.8,0.24169964]
[1756970453759,11.00768374,4379.9,4379.8,0.24169964]
[1756970453960,10.51458374,4379.9,4379.8,0.24169964]
[1756970454777,6.68158374,4379.9,4379.8,0.53019964]
[1756970455092,10.51458374,4379.9,4379.8,0.53019964]
[1756970458262,10.51458374,4379.9,4379.8,0.48019964]
[1756970458459,10.51458374,4379.9,4379.8,0.19169964]
[1756970459820,10.51458374,4379.9,4379.8,0.48019964]
[1756970459980,4.3992266,4379.9,4379.8,0.48019964]
[1756970460180,6.72338374,4379.9,4379.8,0.48019964]
[1756970460403,10.51538374,4379.9,4379.8,0.19169964]
[1756970460614,8.28968374,4379.9,4379.8,0.19169964]
[1756970460911,10.51538374,4379.9,4379.8,0.19169964]
[1756970461612,10.51458374,4379.9,4379.8,0.19169964]
[1756970462887,2.28332252,4379.6,4379.3,0.444]
[1756970463082,0.1144,4379.4,4379.3,0.444]
[1756970463281,0.1144,4379.4,4379.3,0.004]
[1756970463608,3.9474,4379.4,4379.3,0.4411]
[1756970463811,3.9474,4379.4,4379.3,0.7401]
[1756970465400,3.9474,4379.4,4379.3,0.8811]
[1756970467205,3.9484,4379.9,4379.3,0.9955]
[1756970467393,3.9484,4379.9,4379.4,0.44]
[1756970467598,3.9484,4379.9,4379.4,2.72340362]
[1756970467902,3.9484,4379.9,4379.8,0.2961]
[1756970470089,0.1154,4379.9,4379.8,0.2961]
[1756970470285,0.1154,4379.9,4379.8,0.5127495]
[1756970473134,0.1154,4379.9,4379.8,0.9527495]
[1756970474532,0.1154,4379.9,4379.8,3.23595877]
[1756970475238,0.1154,4379.9,4379.8,0.9527495]
[1756970475606,0.001,4379.9,4379.8,3.37695877]
[1756970477340,0.001,4379.9,4379.8,14.28905068]
[1756970478620,0.001,4379.9,4379.8,2.79595877]
[1756970478816,0.001,4379.9,4379.8,6.62795877]
[1756970479651,0.001,4379.9,4379.8,7.06795877]
[1756970481143,0.001,4379.9,4379.8,6.62795877]
[1756970481350,0.001,4379.9,4379.8,2.79595877]
[1756970481550,0.001,4379.9,4379.8,6.62795877]
[1756970481948,0.7753,4379.9,4379.8,0.2166495]
[1756970482146,1.2456,4379.9,4379.8,0.2166495]
[1756970482318,0.7753,4379.9,4379.8,0.2166495]
[1756970482516,0.001,4379.9,4379.8,0.5127495]
[1756970482730,0.1154,4379.9,4379.8,2.79595877]
[1756970484570,0.1154,4379.9,4379.8,6.62795877]
[1756970485585,0.1154,4379.9,4379.8,4.3447495]
[1756970485751,0.1154,4379.9,4379.8,6.62795877]
[1756970486069,0.1154,4379.9,4379.8,4.0486495]
[1756970486286,1.36,4379.9,4379.8,4.0476495]
[1756970486653,0.577,4379.9,4379.8,4.0476495]
[1756970486852,0.8897,4379.9,4379.8,4.0476495]
[1756970487054,0.8889,4379.9,4379.8,4.0476495]
[1756970487249,0.1146,4379.9,4379.8,4.0476495]
[1756970487563,0.1146,4379.9,4379.8,7.06695877]
[1756970487564,0.0002,4379.9,4379.8,7.06695877]
[1756970487764,0.0002,4379.9,4379.8,6.62695877]
[1756970488252,0.0002,4379.9,4379.8,2.79595877]
[1756970488442,0.0002,4379.9,4379.8,6.62695877]
[1756970489679,0.0002,4379.9,4379.8,4.3437495]
[1756970489977,0.7745,4379.9,4379.8,4.0476495]
[1756970490280,0.7745,4379.9,4379.8,6.33085877]
[1756970490575,0.7745,4379.9,4379.8,4.0476495]
[1756970490799,0.7745,4379.9,4379.8,6.33085877]
[1756970491101,0.0002,4379.9,4379.8,2.81315877]
[1756970491287,0.0002,4379.9,4379.8,7.09935877]
[1756970492068,0.0002,4379.9,4379.8,6.64415877]
[1756970492964,0.0002,4379.9,4379.8,4.0476495]
[1756970493171,1.371,4379.9,4379.8,4.0476495]
[1756970494293,1.371,4379.9,4379.8,4.04752386]
[1756970495895,0.1146,4379.9,4379.8,6.33073313]
[1756970496205,0.0002,4379.9,4379.8,6.64403313]
[1756970496993,0.0002,4379.9,4379.8,2.81303313]
[1756970497176,0.0002,4379.9,4379.8,6.64403313]
[1756970503311,0.0002,4379.9,4379.8,6.33073313]
[1756970503678,0.0002,4379.9,4379.8,6.64403313]
[1756970509615,0.0002,4379.9,4379.8,15.56940993]
[1756970512521,0.0002,4379.9,4379.8,6.64403313]
[1756970512719,0.1138,4380.2,4379.8,6.64403313]
[1756970513015,1.0559,4380.2,4379.9,2.49567844]
[1756970513220,0.1144,4380.3,4380.0,0.21252386]
[1756970513427,0.7744,4380.1,4379.8,0.004]
[1756970513596,1.2564,4380.1,4379.9,4.04312718]
[1756970513927,0.3143,4380.1,4380.0,0.21312718]
[1756970514494,1.2564,4380.1,4380.0,0.21312718]
[1756970515427,1.2564,4380.1,4380.0,4.04312718]
[1756970515833,1.75003436,4380.1,4380.0,0.21312718]
[1756970516024,4.03308725,4380.1,4380.0,0.21312718]
[1756970516404,1.75003436,4380.1,4380.0,0.21312718]
[1756970517805,4.03308725,4380.1,4380.0,0.21312718]
[1756970519721,1.75003436,4380.1,4380.0,0.21312718]
[1756970520240,4.03308725,4380.1,4380.0,0.21312718]
[1756970520817,1.75003436,4380.1,4380.0,0.21312718]
[1756970521651,1.75103436,4380.1,4380.0,0.21312718]
[1756970522358,1.29093436,4380.1,4380.0,0.21312718]
[1756970523155,0.49463436,4380.1,4380.0,0.52022718]
[1756970523342,0.001,4380.1,4380.0,0.52022718]
[1756970523546,0.001,4380.1,4380.0,0.21312718]
[1756970524349,0.7712,4380.1,4380.0,0.21312718]
[1756970524653,1.2211,4380.1,4380.0,0.21312718]
[1756970524825,1.2211,4380.1,4380.0,0.21303429]
[1756970525157,0.7656,4380.1,4380.0,0.21303429]
[1756970525454,1.2211,4380.1,4380.0,0.21303429]
[1756970527650,3.50415289,4380.1,4380.0,0.21303429]
[1756970527869,3.99746309,4380.1,4380.0,0.21303429]
[1756970528692,3.54196309,4380.1,4380.0,0.21303429]
[1756970528867,3.99746309,4380.1,4380.0,0.21303429]
[1756970529187,3.50415289,4380.1,4380.0,0.21303429]
[1756970529380,3.99743133,4380.1,4380.0,0.21303429]
[1756970530683,1.71437844,4380.1,4380.0,0.21303429]
[1756970530884,0.49427844,4380.1,4380.0,0.52013429]
[1756970531192,0.001,4380.1,4380.0,0.52013429]
[1756970531354,0.49427844,4380.1,4380.0,0.21303429]
[1756970531686,0.7712,4380.1,4380.0,0.21303429]
[1756970531890,1.71437844,4380.1,4380.0,0.21303429]
[1756970533096,0.49427844,4380.1,4380.0,0.52013429]
[1756970533393,0.001,4380.1,4380.0,2.80323931]
[1756970534272,0.001,4380.1,4380.0,2.91763931]
[1756970535065,0.001,4380.1,4380.0,0.32743429]
[1756970535663,0.4565,4380.1,4380.0,0.32743429]
[1756970536064,0.001,4380.1,4380.0,2.91763931]
[1756970537094,0.001,4380.1,4380.0,0.63453429]
[1756970537992,0.4557,4380.1,4380.0,0.32743429]
[1756970538894,0.7704,4380.1,4380.0,0.32743429]
[1756970539466,0.4557,4380.1,4380.0,0.32743429]
[1756970539793,0.001,4381.8,4380.0,0.32743429]
[1756970540093,0.1144,4380.4,4380.1,0.21303429]
[1756970540298,0.1144,4380.4,4380.2,0.21303429]
[1756970540498,0.1144,4380.4,4380.3,0.21303429]
[1756970540667,0.4291,4380.4,4380.3,0.21303429]
[1756970542299,0.4291,4380.4,4380.3,0.21278549]
[1756970544891,0.879,4380.4,4380.3,4.04078549]
[1756970545401,0.4291,4380.4,4380.3,0.21278549]
[1756970547291,0.1144,4380.4,4380.3,0.21278549]
[1756970547603,0.4291,4380.4,4380.3,0.21278549]
[1756970549406,0.4291,4380.4,4380.3,0.21285216]
[1756970550502,0.4291,4380.4,4380.3,4.03985216]
[1756970550706,0.8786,4380.4,4380.3,4.03985216]
[1756970551511,0.4291,4380.4,4380.3,4.03985216]
[1756970552013,0.4291,4380.4,4380.3,4.34855216]
[1756970552014,0.1144,4380.4,4380.3,4.34855216]
[1756970554387,0.001,4380.6,4380.3,7.55050081]
[1756970554587,0.001,4380.6,4380.5,11.20822122]
[1756970554801,0.001,4380.6,4380.5,12.96522896]
[1756970554979,0.2868,4380.6,4380.5,4.03985216]
[1756970555179,0.4495,4381.0,4380.5,4.34855216]
[1756970555397,0.1144,4380.6,4380.5,6.41853659]
[1756970555610,0.1144,4380.6,4380.5,4.34847253]
[1756970556382,0.1144,4380.6,4380.5,13.27384933]
[1756970556577,0.4002,4380.6,4380.5,4.03977253]
[1756970556991,0.1144,4380.6,4380.5,4.03977253]
[1756970557282,0.1144,4380.6,4380.5,4.78097253]
[1756970558785,0.1144,4380.6,4380.5,4.03977253]
[1756970559398,0.4012,4380.6,4380.5,4.03977253]
[1756970559996,0.1154,4380.6,4380.5,4.03977253]
[1756970560791,0.1154,4380.6,4380.5,4.03877253]
[1756970561116,0.1154,4380.6,4380.5,4.03891168]
[1756970562687,0.1154,4380.6,4380.5,4.78011168]
[1756970562882,0.1154,4380.6,4380.5,4.34761168]
[1756970563113,0.1154,4380.6,4380.5,4.78011168]
[1756970563616,0.1146,4380.6,4380.5,4.34761168]
[1756970563816,0.1146,4380.6,4380.5,4.78011168]
[1756970564194,0.1146,4380.6,4380.5,7.0629561]
[1756970564195,0.1154,4380.6,4380.5,7.0629561]
[1756970564396,0.001,4380.6,4380.5,7.0629561]
[1756970565300,0.001,4380.6,4380.5,7.1773561]
[1756970565700,0.001,4380.6,4380.5,4.89451168]
[1756970566216,0.001,4380.6,4380.5,7.1773561]
[1756970567035,0.2868,4380.6,4380.5,0.32731168]
[1756970567320,3.24789231,4380.6,4380.5,3.79731168]
[1756970567616,3.24789231,4380.6,4380.5,0.21291168]
[1756970567810,3.24789231,4380.6,4380.5,4.03891168]
[1756970568407,2.79839231,4380.6,4380.5,4.03891168]
[1756970569494,0.5156,4380.6,4380.5,4.03891168]
[1756970569917,0.2298,4380.6,4380.5,4.34761168]
[1756970570220,0.2298,4380.6,4380.5,4.34764702]
[1756970571803,0.2298,4380.6,4380.5,4.78014702]
[1756970572301,0.2298,4380.6,4380.5,4.03894702]
[1756970574110,0.2298,4380.6,4380.5,4.34764702]
[1756970574316,0.2298,4380.6,4380.5,4.78014702]
[1756970577105,0.2298,4380.6,4380.5,4.78414702]
[1756970577630,0.2298,4380.6,4380.5,4.04294702]
[1756970577815,0.5156,4380.6,4380.5,4.04294702]
[1756970581943,0.2298,4380.6,4380.5,4.04294702]
[1756970583038,0.1154,4380.6,4380.5,4.04194702]
[1756970583241,0.1154,4380.6,4380.5,4.81234702]
[1756970583616,0.1154,4380.6,4380.5,4.81215293]
[1756970584443,0.1154,4380.6,4380.5,4.33735293]
[1756970584639,0.1154,4380.6,4380.5,4.81215293]
[1756970584821,0.001,4380.6,4380.5,7.09499735]
[1756970585547,0.001,4380.6,4380.5,4.81215293]
[1756970586620,0.001,4380.6,4380.5,0.98715293]
[1756970586940,0.001,4380.6,4380.5,4.04075293]
[1756970587116,0.3135,4380.6,4380.5,4.04075293]
[1756970587316,0.4279,4380.6,4380.5,4.04075293]
[1756970587734,0.1154,4380.6,4380.5,4.04075293]
[1756970588945,0.1146,4380.6,4380.5,4.04075293]
[1756970589313,0.4271,4380.6,4380.5,4.04075293]
[1756970589825,0.1146,4380.6,4380.5,4.04075293]
[1756970590820,0.1146,4380.6,4380.5,4.33635293]
[1756970591022,0.1146,4380.6,4380.5,4.81115293]
[1756970592050,0.1146,4380.6,4380.5,4.33635293]
[1756970592252,0.1146,4380.6,4380.5,4.81115293]
[1756970592466,0.1146,4380.6,4380.5,7.55159735]
[1756970592628,0.1146,4380.6,4380.5,3.72759735]
[1756970592947,0.1146,4380.6,4380.5,0.21675293]
[1756970593160,0.0002,4380.6,4380.5,4.04075293]
[1756970593463,0.1146,4380.6,4380.5,4.04075293]
[1756970594425,2.70989231,4380.6,4380.5,0.21675293]
[1756970594621,3.15179231,4380.6,4380.5,4.04075293]
[1756970595154,0.1146,4380.6,4380.5,4.33635293]
[1756970595318,2.70989231,4380.6,4380.5,0.21675293]
[1756970595518,2.70989231,4380.6,4380.5,4.04075293]
[1756970595750,3.15179231,4380.6,4380.5,4.04075293]
[1756970596977,2.70989231,4380.6,4380.5,4.04075293]
[1756970598264,2.70989231,4380.6,4380.5,0.21675293]
[1756970598553,2.70989231,4380.6,4380.5,4.04075293]
[1756970600126,2.70989231,4380.6,4380.5,0.21675293]
[1756970600463,2.70989231,4380.6,4380.5,4.04075293]
[1756970601534,3.15179231,4380.6,4380.5,4.04075293]
[1756970602847,2.70989231,4380.6,4380.5,4.04075293]
[1756970603246,2.73469231,4380.6,4380.5,4.03975293]
[1756970604077,2.73469231,4380.6,4380.5,0.21675293]
[1756970604384,0.1394,4380.6,4380.5,4.03975293]
[1756970606179,0.1394,4380.6,4380.5,4.33535293]
[1756970606781,2.42219231,4380.6,4380.5,4.03975293]
[1756970607092,2.73469231,4380.6,4380.5,4.03975293]
[1756970607659,0.4519,4380.6,4380.5,4.03975293]
[1756970607990,0.1394,4380.6,4380.5,4.03975293]
[1756970611077,0.1394,4380.6,4380.5,0.21675293]
[1756970611270,0.1394,4380.6,4380.5,4.03975293]
[1756970611679,2.42219231,4380.6,4380.5,4.03975293]
[1756970611979,2.71879231,4380.6,4380.5,4.03975293]
[1756970614261,2.71799231,4380.6,4380.5,4.03975293]
[1756970614662,2.71799231,4380.6,4380.5,4.04014927]
[1756970616593,0.1386,4380.6,4380.5,4.80584927]
[1756970616764,0.1386,4380.6,4380.5,7.55229369]
[1756970617478,0.0248,4380.6,4380.5,7.55229369]
[1756970618187,0.0248,4380.6,4380.5,7.55129369]
[1756970618769,0.0248,4380.6,4380.5,7.66569369]
[1756970619988,0.0248,4380.6,4380.5,18.57041039]
[1756970621192,0.0248,4380.6,4380.5,7.55129369]
[1756970621764,0.0248,4380.6,4380.5,18.45601039]
[1756970621968,0.0248,4380.6,4380.5,18.57041039]
[1756970623891,0.0248,4380.6,4380.5,7.66569369]
[1756970625501,0.0248,4380.6,4380.5,3.84369369]
[1756970625802,0.0248,4380.6,4380.5,7.66569369]
[1756970627393,0.0248,4380.6,4380.5,7.78109369]
[1756970628002,0.0258,4380.6,4380.5,7.78109369]
[1756970629282,0.0258,4380.6,4380.5,3.95909369]
[1756970629482,0.0258,4380.6,4380.5,7.78009369]
[1756970630479,0.0258,4380.6,4380.5,3.03049369]
[1756970630775,0.0258,4380.6,4380.5,7.31649369]
[1756970632984,0.0258,4380.6,4380.5,7.78009369]
[1756970633188,0.0258,4380.6,4380.5,3.95909369]
[1756970633503,0.0258,4380.6,4380.5,16.70218587]
[1756970635903,0.0258,4380.6,4380.5,16.23858587]
[1756970637802,0.0258,4380.6,4380.5,15.77358587]
[1756970638408,0.0258,4380.6,4380.5,16.23858587]
[1756970638610,0.0258,4380.6,4380.5,16.23758587]
[1756970639881,0.025,4380.6,4380.5,16.23758587]
[1756970640407,0.025,4380.6,4380.5,16.70028587]
[1756970641585,0.025,4380.6,4380.5,16.23758587]
[1756970642288,0.025,4380.6,4380.5,15.47188587]
[1756970643101,0.025,4380.6,4380.5,15.77638587]
[1756970643493,0.025,4380.6,4380.5,16.22638587]
[1756970645302,0.025,4380.6,4380.5,12.40638587]
[1756970645496,0.025,4380.6,4380.5,16.22638587]
[1756970646891,0.025,4380.6,4380.5,3.48429369]
[1756970647223,0.025,4380.6,4380.5,16.22638587]
[1756970648322,0.025,4380.6,4380.5,16.68908587]
[1756970651026,0.025,4380.6,4380.5,12.40638587]
[1756970651240,0.025,4380.6,4380.5,16.22638587]
[1756970654413,0.025,4380.6,4380.5,16.68908587]
[1756970655129,0.025,4380.6,4380.5,26.40317805]
[1756970655328,0.025,4380.6,4380.5,29.40317805]
[1756970655498,1e-08,4380.6,4380.5,29.40317805]
[1756970655699,0.001,4381.1,4381.0,3.07458388]
[1756970656031,0.001,4381.1,4381.0,17.89822533]
[1756970656226,0.001,4381.1,4381.0,19.11542533]
[1756970656430,0.001,4381.1,4381.0,19.22982533]
[1756970658332,0.001,4381.1,4381.0,18.76712533]
[1756970658628,0.001,4381.1,4381.0,18.31712533]
[1756970659002,0.001,4381.1,4381.0,18.76712533]
[1756970659204,0.001,4381.1,4381.0,18.31712533]
[1756970659531,1.2256,4381.1,4381.0,8.29853315]
[1756970659732,1.2256,4381.1,4381.0,4.47953315]
[1756970659912,1.2256,4381.1,4381.0,8.29853315]
[1756970660626,0.7949,4381.1,4381.0,8.29853315]
[1756970661130,0.3007,4381.1,4381.0,8.29853315]
[1756970661336,0.3007,4381.1,4381.0,4.47953315]
[1756970661635,0.3007,4381.1,4381.0,8.29853315]
[1756970661999,2.28204155,4382.1,4381.3,2.28242758]
[1756970662199,0.1144,4381.7,4381.4,4.03114927]
[1756970662430,0.1144,4381.7,4381.5,0.21314927]
[1756970662632,0.1144,4381.7,4381.6,4.03114927]
[1756970665332,0.1136,4381.7,4381.6,4.03114927]
[1756970665802,2.84721922,4381.7,4381.6,0.21314927]
[1756970666006,2.84721922,4381.7,4381.6,4.03114927]
[1756970668207,0.565,4381.7,4381.6,4.03114927]
[1756970668908,0.1136,4381.7,4381.6,4.03114927]
[1756970669313,0.1136,4381.7,4381.6,4.03081078]
[1756970670835,0.1136,4381.7,4381.6,4.48301078]
[1756970671248,0.1136,4381.7,4381.6,4.43261078]
[1756970671546,0.1136,4381.7,4381.6,3.98041078]
[1756970672048,0.1136,4381.7,4381.6,4.43261078]
[1756970672245,0.1136,4381.7,4381.6,13.35470296]
[1756970672757,0.1136,4381.7,4381.6,15.94267427]
[1756970673852,0.1136,4381.7,4381.6,13.66040296]
[1756970675454,0.1136,4381.7,4381.6,4.43261078]
[1756970675748,0.1136,4381.7,4381.6,4.02981078]
[1756970676252,2.39581922,4381.7,4381.6,0.21281078]
[1756970676551,2.39581922,4381.7,4381.6,4.02981078]
[1756970676949,0.1136,4381.7,4381.6,4.02981078]
[1756970677338,2.39581922,4381.7,4381.6,4.02981078]
[1756970677542,2.39581922,4381.7,4381.6,0.21281078]
[1756970677744,2.39581922,4381.7,4381.6,4.02981078]
[1756970679340,2.39681922,4381.7,4381.6,0.21281078]
[1756970679566,6.36481717,4381.7,4381.6,0.21281078]
[1756970681344,15.28690935,4381.7,4381.6,0.21281078]
[1756970684283,15.28659458,4381.7,4381.6,0.21281078]
[1756970685692,3.0,4381.4,4381.0,3.817]
[1756970685860,2.28247968,4381.2,4381.1,0.21269256]
[1756970686385,2.39687968,4381.2,4381.1,0.21269256]
[1756970688385,2.28263598,4380.9,4380.8,0.025]
[1756970688590,2.39703598,4380.9,4380.8,0.23770363]
[1756970689159,2.39703598,4380.9,4380.8,0.025]
[1756970689160,10.97362865,4380.9,4380.8,0.025]
[1756970690188,10.49842865,4380.9,4380.8,0.025]
[1756970690560,10.49762865,4380.9,4380.8,0.025]
[1756970691192,19.41972083,4380.9,4380.8,0.025]
[1756970692887,5.88862865,4380.9,4380.8,0.025]
[1756970693089,9.70562865,4380.9,4380.8,0.025]
[1756970696851,9.70562865,4380.9,4380.8,0.029]
[1756970700595,0.49239267,4380.9,4380.8,1.2769]
[1756970700754,2.39703598,4380.9,4380.8,1.2769]
[1756970700953,0.1144,4380.9,4380.8,1.2769]
[1756970701390,0.1144,4380.9,4380.8,1.48904303]
[1756970701889,2.39703598,4380.9,4380.8,1.00284303]
[1756970702195,2.39703598,4380.9,4380.8,0.24114303]
[1756970702382,2.39703598,4380.9,4380.8,0.029]
[1756970702883,9.21403598,4380.9,4380.8,0.029]
[1756970703092,9.21403598,4380.9,4380.8,0.7907]
[1756970704887,9.21403598,4380.9,4380.8,0.029]
[1756970705396,5.88863153,4380.9,4380.8,0.029]
[1756970706576,9.70563153,4380.9,4380.8,0.7907]
[1756970707005,9.70563153,4380.9,4380.8,0.5007]
[1756970707288,9.70563153,4380.9,4380.8,0.029]
[1756970712766,9.70563153,4380.9,4380.8,0.5007]
[1756970713996,3.60599555,4380.9,4380.8,1.2769]
[1756970714195,5.88952792,4380.9,4380.8,1.48966598]
[1756970714705,5.39703598,4380.9,4380.8,1.48966598]
[1756970714870,3.1144,4380.9,4380.8,1.48966598]
[1756970715993,3.1146,4380.9,4380.8,1.48966598]
[1756970716202,3.1146,4380.9,4380.3,0.004]
[1756970716398,3.07661766,4377.1,4376.8,0.025]
[1756970716576,7.78897568,4377.1,4376.9,0.87194834]
[1756970716778,2.28524417,4375.9,4375.8,0.025]
[1756970717016,2.28555756,4375.3,4375.2,0.4717]
[1756970717231,2.28576653,4374.9,4374.7,0.4717]
[1756970717511,2.77889563,4374.9,4374.8,0.4967]
[1756970717710,2.77889563,4374.9,4374.8,0.025]
[1756970718078,5.77889563,4374.9,4374.8,0.025]
[1756970718287,12.73435324,4374.9,4374.8,0.025]
[1756970718497,12.73535324,4374.9,4374.8,0.025]
[1756970718724,9.85789563,4374.9,4374.8,0.4967]
[1756970718875,9.85789563,4374.9,4374.8,0.025]
[1756970719325,2.28592328,4374.6,4374.5,0.4717]
[1756970719623,2.28608005,4374.3,4374.2,0.4717]
[1756970719779,5.77920915,4374.3,4374.2,0.7617]
[1756970720279,6.13444023,4374.3,4374.2,0.7617]
[1756970721922,6.13444023,4374.3,4374.2,0.29]
[1756970721923,10.9833588,4374.3,4374.2,0.29]
[1756970722251,10.20944023,4374.3,4374.2,0.7617]
[1756970722724,10.20944023,4374.3,4374.2,0.64233207]
[1756970722929,2.28620324,4374.1,4372.9,0.26588777]
[1756970723219,2.28620324,4374.1,4374.0,0.0494197]
[1756970723526,9.84640708,4374.1,4374.0,0.0494197]
[1756970723881,5.77140708,4374.1,4374.0,0.0494197]
[1756970724084,9.84440708,4374.1,4374.0,0.0494197]
[1756970724483,9.84340708,4374.1,4374.0,0.0494197]
[1756970724700,12.67057131,4374.1,4374.0,0.0494197]
[1756970725420,2.28634139,4373.8,4373.7,0.4717]
[1756970725623,5.77154523,4373.8,4373.7,0.4717]
[1756970725824,5.77154523,4373.8,4373.7,0.7617]
[1756970726012,3.48520384,4373.8,4373.7,0.7617]
[1756970726211,5.77154523,4373.8,4373.7,0.7617]
[1756970726395,3.59960384,4373.8,4373.7,0.7617]
[1756970726592,3.0,4373.7,4372.9,0.26588777]
[1756970726815,2.82242,4373.3,4372.9,1.757]
[1756970727133,0.48520384,4373.2,4372.9,1.757]
[1756970727422,0.59960384,4373.1,4372.9,4.04380897]
[1756970727591,0.48520384,4373.0,4372.9,4.04381195]
[1756970727787,0.48520384,4373.0,4372.9,4.33381195]
[1756970728715,0.48520384,4373.0,4372.9,5.14741195]
[1756970728910,0.48520384,4373.0,4372.9,3.6526]
[1756970729199,0.48520384,4373.0,4372.9,6.05381195]
[1756970730293,0.48520384,4373.0,4372.9,10.11681195]
[1756970731302,1.6929747,4373.0,4372.9,10.11681195]
[1756970732216,0.48520384,4373.0,4372.9,10.11681195]
[1756970732633,1.69353735,4373.0,4372.9,10.11681195]
[1756970733131,0.48520384,4373.0,4372.9,10.11681195]
[1756970733526,0.48520384,4373.0,4372.9,10.10781195]
[1756970733722,0.48520384,4373.0,4372.9,6.05381195]
[1756970733929,0.48520384,4373.0,4372.9,10.10781195]
[1756970734235,0.48520384,4373.0,4372.9,8.87152943]
[1756970734544,0.48520384,4373.0,4372.9,8.59941195]
[1756970734758,0.48520384,4373.0,4372.1,0.6873049]
[1756970734759,25.0428921,4373.0,4372.0,0.004]
[1756970734962,0.792,4372.0,4369.8,0.025]
[1756970735259,2.01473939,4371.2,4369.8,0.064]
[1756970735435,1.61286257,4370.3,4369.9,0.13728381]
[1756970735636,0.1144,4370.8,4370.2,0.0598]
[1756970735951,1.61281649,4370.3,4370.2,0.0598]
[1756970736256,0.48384597,4370.3,4370.2,2.34802479]
[1756970736633,0.48384597,4370.3,4370.2,6.49402479]
[1756970736951,2.09630143,4370.3,4370.2,4.146]
[1756970737128,0.48384597,4370.3,4370.2,2.28822479]
[1756970737328,0.48384597,4370.3,4370.2,6.43422479]
[1756970737561,0.48384597,4370.3,4370.2,6.43322479]
[1756970737853,2.09629374,4370.3,4370.2,6.43322479]
[1756970738169,0.48384597,4370.3,4370.2,6.43322479]
[1756970738326,0.48384597,4370.3,4370.2,2.28822479]
[1756970738547,0.48384597,4370.3,4370.2,6.43022479]
[1756970739373,0.48384597,4370.3,4370.2,6.54462479]
[1756970739825,0.48384597,4370.3,4370.2,6.86702479]
[1756970740254,0.48384597,4370.3,4370.2,6.54462479]
[1756970740464,0.48384597,4370.3,4370.2,6.54162479]
[1756970741255,0.48384597,4370.3,4370.2,2.40262479]
[1756970741559,0.48304597,4370.3,4370.2,2.40262479]
[1756970741856,0.48304597,4370.3,4370.2,6.53662479]
[1756970742256,2.09636472,4370.3,4370.2,6.53662479]
[1756970742765,2.09636472,4370.3,4370.2,4.2484]
[1756970742962,2.09636472,4370.3,4370.2,6.53662479]
[1756970743140,0.48304597,4370.3,4370.2,4.05943483]
[1756970743758,0.48304597,4370.3,4370.2,6.34765962]
[1756970743961,2.10325111,4370.3,4370.2,6.34765962]
[1756970744132,0.48304597,4370.3,4370.2,6.34765962]
[1756970745835,2.49912418,4370.3,4370.2,6.34765962]
[1756970746161,0.48304597,4370.3,4370.2,6.34765962]
[1756970746960,0.48304597,4370.3,4370.2,4.49201044]
[1756970747871,0.48304597,4370.3,4370.2,6.40722479]
[1756970748174,0.48304597,4370.3,4370.2,7.19922479]
[1756970748346,0.48304597,4370.3,4370.2,7.64792479]
[1756970748870,1.63511224,4370.9,4370.8,3.07991067]